bitfinex-derivatives/quotes_ETHF0:USTF0_20251210
["timestamp","ask_amount","ask_price","bid_price","bid_amount"]
[1765392417898,7.41498874,3402.9,3402.8,3.35914587]
[1765392418394,7.41498874,3402.9,3402.8,0.15134587]
[1765392420100,7.41498874,3402.9,3402.2,0.00298047]
[1765392420101,3.6432,3402.4,3402.2,0.00298047]
[1765392420287,0.81308874,3402.3,3402.2,0.00298047]
[1765392420597,0.81652714,3402.3,3402.2,0.00298047]
[1765392421292,0.81652714,3402.3,3402.2,3.35774047]
[1765392421494,2.38511373,3402.3,3402.2,3.35774047]
[1765392421799,3.2078,3402.9,3402.8,0.14694]
[1765392422596,3.2078,3402.9,3402.8,3.35474]
[1765392422800,3.6432,3402.4,3402.2,0.00298047]
[1765392422997,6.851,3402.4,3402.2,0.00298047]
[1765392423192,3.6432,3402.4,3402.3,3.35476]
[1765392423495,0.00223713,3402.9,3402.3,3.2078]
[1765392423496,3.21003713,3402.9,3402.3,3.2078]
[1765392423892,3.21003713,3402.9,3402.8,0.14694]
[1765392424497,3.21003713,3402.9,3402.8,6.14694]
[1765392424498,0.00223713,3402.9,3402.8,6.14694]
[1765392424700,0.00223713,3402.9,3402.8,8.34783053]
[1765392425300,3.2078,3403.7,3403.6,0.1469]
[1765392425903,3.3941,3403.8,3403.7,0.1469]
[1765392426101,0.00340034,3403.8,3403.6,3.2078]
[1765392426397,0.00438406,3404.2,3404.1,0.14688]
[1765392426598,0.00438406,3404.2,3404.1,5.55557053]
[1765392426801,2.62638503,3406.2,3404.1,5.55557053]
[1765392426802,3.2078,3405.3,3404.1,11.40869053]
[1765392426994,3.2078,3405.3,3404.6,2.20089053]
[1765392427499,3.21104673,3405.3,3404.6,2.2045198]
[1765392427703,3.2154526,3405.3,3404.6,2.2045198]
[1765392428198,0.0076526,3405.3,3405.2,0.14683]
[1765392428402,3.6432,3404.8,3404.6,0.00362927]
[1765392428600,6.851,3404.8,3404.6,0.00362927]
[1765392428803,6.851,3404.8,3404.3,0.14687]
[1765392429009,6.851,3404.8,3404.4,3.35467]
[1765392429509,3.6432,3404.8,3404.7,0.14685]
[1765392429701,0.0076526,3405.3,3405.1,0.14684]
[1765392429900,0.0076526,3405.3,3405.2,0.14683]
[1765392430206,1.57531298,3405.3,3405.2,3.35463]
[1765392430701,0.0076526,3405.3,3405.2,3.35463]
[1765392437310,3.2599,3404.8,3404.7,0.00221264]
[1765392437510,7.22240561,3404.8,3403.5,3.2078]
[1765392437705,3.2078,3404.3,3404.0,2.87617213]
[1765392438210,3.2078,3404.3,3404.2,0.14687]
[1765392438414,3.2078,3404.3,3404.2,0.14971057]
[1765392438716,3.2078,3404.3,3404.2,0.1183757]
[1765392439007,3.2599,3403.2,3402.9,3.2078]
[1765392439210,3.2078,3403.0,3402.4,0.14695]
[1765392439513,3.2078,3402.7,3402.4,0.14695]
[1765392439710,3.2078,3402.7,3402.6,0.14694]
[1765392439909,3.2599,3403.2,3402.9,0.14693]
[1765392440109,3.2599,3403.2,3402.7,0.00440587]
[1765392440411,3.26297081,3403.2,3402.7,0.00440587]
[1765392441117,3.26297081,3403.2,3402.7,2.880578]
[1765392441309,3.2078,3402.8,3402.7,0.00440587]
[1765392441615,3.26297081,3403.2,3402.7,0.00440587]
[1765392441916,3.26297081,3403.2,3402.7,0.15134587]
[1765392441917,3.2078,3402.9,3402.7,0.15134587]
[1765392442109,3.26297081,3403.2,3402.8,2.87617213]
[1765392442416,3.2078,3402.9,3402.8,2.87617213]
[1765392442608,3.2078,3402.9,3402.8,0.14694]
[1765392442913,3.26297081,3403.2,3402.8,2.87617213]
[1765392443110,3.26297081,3403.2,3403.1,0.14692]
[1765392444114,0.00307081,3403.2,3403.1,0.14692]
[1765392444519,0.00307081,3403.2,3403.1,3.35472]
[1765392444817,0.00307081,3403.2,3403.1,9.35472]
[1765392445120,3.2078,3404.6,3403.1,9.2078]
[1765392445308,2.20089053,3405.4,3404.1,0.14688]
[1765392445506,3.2078,3404.3,3404.2,0.14688]
[1765392445709,3.2078,3404.4,3404.3,0.14687]
[1765392446109,3.2078,3405.3,3405.2,0.14683]
[1765392446313,0.00254516,3405.3,3405.2,3.02529298]
[1765392446509,0.00254516,3405.3,3405.2,6.23309298]
[1765392447110,0.00254516,3405.3,3405.2,3.02529298]
[1765392447912,0.00254516,3405.3,3405.2,6.23309298]
[1765392448113,0.00440587,3405.6,3405.5,0.14682]
[1765392449019,0.00692522,3405.6,3405.5,0.14682]
[1765392449927,3.26222522,3405.6,3405.5,0.14682]
[1765392450312,0.00692522,3405.6,3405.5,0.14682]
[1765392453415,3.2078,3406.3,3405.5,0.14682]
[1765392453416,3.2599,3407.2,3406.2,2.87617213]
[1765392453615,3.2078,3407.9,3407.8,0.14672]
[1765392453821,3.2078,3407.9,3406.4,3.2078]
[1765392453822,3.2553,3407.2,3406.4,3.2078]
[1765392454011,3.2553,3407.2,3406.8,3.2078]
[1765392454517,3.25909868,3407.2,3406.9,3.2078]
[1765392454716,3.25909868,3407.2,3407.1,0.14675]
[1765392454717,0.00379868,3407.2,3407.1,0.14675]
[1765392456524,0.00379868,3407.2,3406.8,0.00249558]
[1765392456525,6.00379868,3407.2,3406.8,0.00249558]
[1765392456721,3.2078,3407.0,3406.7,0.00440587]
[1765392456919,3.2078,3407.0,3406.7,2.880578]
[1765392457122,3.2078,3407.0,3406.8,0.14676]
[1765392457627,3.2078,3407.0,3406.8,0.14965787]
[1765392457923,3.2078,3407.0,3406.9,0.14676]
[1765392458424,3.2078,3407.0,3406.8,0.00289787]
[1765392458425,9.2078,3407.0,3406.8,0.00289787]
[1765392458722,3.2078,3407.0,3406.8,2.87907]
[1765392458926,9.2078,3407.0,3406.8,0.00289787]
[1765392459225,9.2078,3407.0,3406.7,0.00440587]
[1765392459417,3.2078,3407.0,3406.7,0.00440587]
[1765392460028,3.2078,3407.0,3406.7,5.87e-06]
[1765392460232,3.2078,3407.0,3406.7,0.00355674]
[1765392460629,9.2078,3407.0,3406.7,0.00355674]
[1765392461224,9.2078,3407.0,3406.5,0.00440587]
[1765392461422,3.2553,3406.4,3405.9,0.1468]
[1765392462231,3.2078,3406.0,3405.9,0.15035675]
[1765392462532,3.2078,3406.0,3405.6,0.00440587]
[1765392462928,3.2553,3404.8,3404.6,0.14686]
[1765392463129,3.2553,3405.6,3405.2,0.14683]
[1765392463325,3.2553,3405.6,3405.4,0.14682]
[1765392463532,3.2078,3405.5,3405.4,0.14985686]
[1765392463731,3.25850949,3405.6,3405.5,0.14682]
[1765392464027,0.00320949,3405.6,3405.5,0.14682]
[1765392464233,0.00440587,3405.9,3405.8,0.14681]
[1765392464432,0.00440587,3405.9,3405.8,5.55550053]
[1765392464923,0.00440587,3405.9,3405.8,0.14681]
[1765392465326,0.006559,3405.9,3405.8,5.55550053]
[1765392466036,3.2078,3407.1,3406.7,0.14676]
[1765392466228,3.2078,3407.1,3407.0,0.14675]
[1765392466631,3.2553,3407.2,3407.1,0.14675]
[1765392466831,3.2553,3408.0,3406.8,2.20089053]
[1765392467037,3.2078,3407.9,3407.7,0.14672]
[1765392467436,3.25902459,3408.0,3407.8,0.14672]
[1765392467742,3.25902459,3408.0,3407.8,0.15019609]
[1765392468136,3.25902459,3408.0,3407.9,0.14672]
[1765392469228,3.25902459,3408.0,3407.9,3.02289213]
[1765392470339,0.00372459,3408.0,3407.9,3.02289213]
[1765392471829,0.00372459,3408.0,3407.9,5.22378266]
[1765392472537,0.00372459,3408.0,3407.9,3.02289213]
[1765392472732,3.25902459,3408.0,3407.9,3.02289213]
[1765392474534,0.00372459,3408.0,3407.9,9.02289213]
[1765392474733,4.77546038,3409.2,3407.9,8.87617213]
[1765392474936,1.56766038,3409.9,3409.0,2.87617213]
[1765392475235,3.98771221,3409.5,3409.2,0.14666]
[1765392475425,0.77991221,3409.4,3409.3,0.14666]
[1765392475632,8.03076038,3410.4,3409.3,2.20089053]
[1765392475932,0.00439928,3410.2,3410.1,0.14662]
[1765392478440,0.00439928,3410.2,3410.1,3.35442]
[1765392478836,0.0028544,3410.4,3410.3,0.14661]
[1765392479132,0.0028544,3410.4,3410.3,2.34982116]
[1765392479533,2.9464544,3410.4,3410.3,0.14893063]
[1765392480628,2.9436,3409.6,3409.5,0.00439928]
[1765392480837,6.1514,3409.6,3409.5,0.00439928]
[1765392481039,12.1514,3409.6,3409.5,2.68166217]
[1765392481334,6.1514,3409.6,3409.5,2.82831217]
[1765392481734,6.1514,3409.6,3409.5,2.83148142]
[1765392481935,12.1514,3409.6,3409.2,0.00439928]
[1765392482131,6.1514,3409.6,3409.2,0.00439928]
[1765392482942,6.1514,3409.6,3409.2,0.0069038]
[1765392483534,6.1514,3409.6,3409.4,0.14665]
[1765392484336,6.1514,3409.6,3409.5,0.14665]
[1765392484542,6.1514,3409.6,3409.2,0.0069038]
[1765392484543,3.2078,3410.1,3409.9,0.14663]
[1765392485141,3.2078,3410.1,3410.0,0.14663]
[1765392485535,3.2078,3410.1,3409.2,0.1535638]
[1765392485840,3.2078,3409.6,3409.4,0.14665]
[1765392486234,3.2078,3409.6,3409.5,0.14665]
[1765392486636,2.9464544,3410.4,3409.5,3.2078]
[1765392486838,2.9464544,3410.4,3410.3,0.14661]
[1765392487238,2.9464544,3410.4,3409.5,3.2078]
[1765392487239,2.9436,3409.6,3409.5,0.14664]
[1765392487637,3.2078,3410.0,3409.8,0.14663]
[1765392487941,3.2078,3410.0,3409.9,0.14663]
[1765392489036,6.1542544,3410.4,3410.3,0.14661]
[1765392490341,3.2106544,3410.4,3410.3,0.14661]
[1765392490744,3.0065544,3410.4,3410.3,0.14661]
[1765392491938,0.0028544,3410.4,3410.3,0.14661]
[1765392492951,0.0028544,3410.4,3410.3,3.35441]
[1765392493646,0.0028544,3410.4,3410.3,0.14661]
[1765392493848,3.0065544,3410.4,3410.3,0.14661]
[1765392494245,3.80701615,3410.4,3410.3,0.14661]
[1765392494548,0.80331615,3410.4,3410.3,0.14661]
[1765392495742,3.80701615,3410.4,3410.3,0.14661]
[1765392498041,3.0037,3409.7,3409.2,3.2147038]
[1765392498241,0.80046175,3409.6,3409.5,0.14665]
[1765392498841,10.32506175,3409.6,3409.5,0.14665]
[1765392499047,9.5246,3409.3,3408.4,3.2078]
[1765392499246,3.0037,3409.0,3408.4,3.2078]
[1765392499547,0.80046175,3408.9,3408.4,3.2078]
[1765392499746,10.32506175,3408.8,3408.7,0.14668]
[1765392500148,0.80046175,3408.8,3408.4,3.21219928]
[1765392500347,1.57139335,3408.6,3407.5,3.2078]
[1765392500652,3.2078,3408.2,3407.5,3.2078]
[1765392500846,0.80046175,3408.1,3407.5,3.2078]
[1765392501043,0.80046175,3408.0,3407.5,3.2078]
[1765392501249,0.80046175,3407.9,3407.8,0.14672]
[1765392501452,0.00223392,3408.0,3407.9,0.14672]
[1765392501650,0.79460045,3408.0,3407.9,0.14672]
[1765392502557,0.79460045,3408.0,3407.5,0.00234891]
[1765392502558,3.0037,3407.6,3407.5,0.00234891]
[1765392502854,7.00386653,3407.6,3407.5,0.00234891]
[1765392503754,7.00386653,3407.6,3407.5,0.14907891]
[1765392503951,3.0037,3406.9,3406.8,0.14676]
[1765392504151,7.00386653,3406.9,3406.8,0.14676]
[1765392504449,6.2115,3406.9,3406.0,3.3546]
[1765392504656,0.79050412,3406.8,3406.0,3.2078]
[1765392504847,0.79050412,3406.8,3406.1,0.00439928]
[1765392504848,0.00439928,3406.7,3406.1,0.00439928]
[1765392505048,0.00439928,3406.7,3406.6,0.14677]
[1765392505446,0.00439928,3406.7,3406.1,0.00439928]
[1765392506555,0.00439928,3406.7,3406.6,0.14677]
[1765392507549,6.00439928,3406.7,3406.1,0.00439928]
[1765392507748,3.2078,3406.2,3406.1,0.15118928]
[1765392507951,3.2078,3406.6,3406.2,0.14679]
[1765392508152,3.2078,3406.6,3406.3,0.14678]
[1765392508560,0.8304594,3406.5,3406.1,0.00439928]
[1765392508857,3.2078,3406.2,3406.1,0.00439928]
[1765392509260,3.2078,3406.2,3406.1,0.15118928]
[1765392510256,4.03717836,3406.2,3406.1,0.15118928]
[1765392510454,3.2078,3406.2,3406.1,0.15118928]
[1765392512356,6.0924,3406.2,3406.1,0.15118928]
[1765392512858,2.8846,3405.5,3405.4,0.14682]
[1765392513649,2.88804091,3405.5,3405.4,0.14894621]
[1765392513849,12.52944091,3405.5,3405.4,0.14894621]
[1765392515458,9.6414,3405.2,3405.1,0.00294163]
[1765392515653,12.8492,3405.2,3405.1,0.00294163]
[1765392516563,12.8492,3405.2,3405.1,0.15310191]
[1765392516765,7.77684091,3405.5,3405.4,0.14682]
[1765392516959,12.52944091,3405.5,3405.4,0.14682]
[1765392517859,9.6414,3405.2,3405.1,0.00626191]
[1765392518664,9.6414,3405.2,3405.1,0.15310191]
[1765392519365,9.6414,3405.2,3405.1,1.91e-06]
[1765392519765,9.6414,3405.2,3404.2,3.2078]
[1765392520062,3.2078,3405.3,3404.2,0.14688]
[1765392520063,12.8492,3404.3,3404.2,0.14688]
[1765392520461,12.8492,3404.3,3404.2,0.14906847]
[1765392520767,12.8492,3404.3,3403.3,3.2078]
[1765392521265,12.8492,3404.3,3403.7,0.1469]
[1765392521266,9.6414,3403.8,3403.7,0.1469]
[1765392521865,9.6414,3403.8,3403.7,0.15038815]
[1765392522462,4.8888,3403.8,3403.7,0.15038815]
[1765392522661,9.6414,3403.8,3403.7,0.15038815]
[1765392522864,4.8888,3403.8,3403.7,0.15038815]
[1765392523266,3.2078,3404.3,3404.2,9.38208]
[1765392523572,9.64580626,3404.6,3404.5,0.14686]
[1765392524364,10.49185197,3404.6,3404.5,0.14686]
[1765392524570,4.89320626,3404.6,3404.5,0.14686]
[1765392524866,9.64580626,3404.6,3404.5,0.14686]
[1765392525166,10.49186688,3404.6,3404.5,0.14686]
[1765392526562,9.6414,3403.8,3403.7,0.00348815]
[1765392526863,0.00440626,3404.6,3403.7,15.23868815]
[1765392527062,9.6414,3404.4,3404.3,0.14687]
[1765392527261,13.69712275,3404.4,3404.3,0.14687]
[1765392527859,4.05572275,3404.4,3404.3,0.14687]
[1765392528172,6.26e-06,3404.6,3404.5,9.38206]
[1765392528373,14.09035246,3405.5,3405.4,0.14682]
[1765392528668,0.00344091,3405.5,3405.4,4.83782]
[1765392528862,0.00344091,3405.5,3405.4,12.58982]
[1765392529069,9.97804,3406.4,3406.3,0.14678]
[1765392529370,5.22544,3406.4,3406.3,0.14678]
[1765392529865,0.1769219,3406.4,3406.3,15.38198]
[1765392530071,4.67e-06,3406.4,3406.3,6.14906785]
[1765392530665,4.67e-06,3406.4,3406.3,0.14906785]
[1765392530875,2.88460467,3406.4,3406.3,0.14906785]
[1765392531570,4.67e-06,3406.4,3406.3,0.14906785]
[1765392532464,2.88460467,3406.4,3406.0,3.21220626]
[1765392532665,2.8846,3405.6,3405.5,0.14682]
[1765392532971,1.56091155,3406.2,3405.9,0.1468]
[1765392533273,1.56091155,3406.2,3406.0,0.1468]
[1765392533468,1.56091155,3406.3,3406.2,0.14679]
[1765392533670,4.67e-06,3406.4,3406.3,0.14678]
[1765392535375,4.67e-06,3406.4,3406.3,6.14678]
[1765392535575,1.56091155,3408.1,3406.4,2.7299]
[1765392535776,1.56091155,3408.1,3408.0,0.14671]
[1765392535963,3.2078,3408.3,3408.2,0.1467]
[1765392536573,3.21123442,3408.3,3408.2,0.1467]
[1765392537468,0.00343442,3408.3,3408.2,0.1467]
[1765392537771,0.00343442,3408.3,3406.9,3.2078]
[1765392537772,2.8846,3408.0,3406.9,3.2078]
[1765392537972,3.2078,3407.6,3406.9,3.2078]
[1765392538174,3.2078,3407.6,3407.5,0.14673]
[1765392539870,3.2078,3407.6,3406.2,2.5068536]
[1765392539871,0.00343442,3408.3,3408.1,0.14671]
[1765392540079,0.00343442,3408.3,3407.5,3.2078]
[1765392540266,0.00343442,3408.3,3407.9,3.2078]
[1765392540474,0.00343442,3408.3,3408.2,0.1467]
[1765392541686,6.26e-06,3408.6,3408.5,0.14669]
[1765392541878,3.2078,3409.2,3409.1,0.14666]
[1765392542177,2.8846,3410.4,3409.8,0.14663]
[1765392542381,0.76792431,3410.3,3409.9,0.14663]
[1765392542675,2.6005,3409.6,3409.4,0.14665]
[1765392542874,2.6005,3409.6,3409.5,0.14665]
[1765392543079,0.00439915,3409.8,3409.7,0.14664]
[1765392543270,0.00292146,3410.3,3409.3,6.0]
[1765392543472,3.2078,3410.8,3410.7,0.1466]
[1765392543777,3.2078,3411.8,3411.5,0.14656]
[1765392544383,3.2078,3411.8,3411.7,0.14655]
[1765392544681,0.00329199,3411.8,3411.7,0.14873886]
[1765392544874,0.00329199,3411.8,3411.7,0.14655]
[1765392545474,0.00329199,3411.8,3411.3,0.00439915]
[1765392545681,3.2078,3411.6,3411.3,0.00439915]
[1765392545979,3.2078,3411.6,3410.5,3.2078]
[1765392546175,0.00329199,3411.8,3406.2,9.46046244]
[1765392546176,3.2078,3410.6,3409.8,3.2078]
[1765392546373,3.2078,3410.6,3409.8,0.14663]
[1765392546576,2.6005,3410.1,3409.8,0.14663]
[1765392546779,2.6005,3410.1,3409.5,3.2078]
[1765392546977,2.6005,3410.1,3410.0,0.14663]
[1765392546978,2.60489915,3410.1,3410.0,0.14663]
[1765392547182,2.60489915,3410.1,3409.5,0.00692604]
[1765392547480,3.2078,3410.0,3409.7,0.14664]
[1765392548278,3.2078,3410.0,3409.5,2.604e-05]
[1765392548474,2.6005,3409.2,3408.9,0.14667]
[1765392548679,5.8083,3409.2,3408.9,0.14667]
[1765392549083,5.8083,3409.2,3409.0,0.14667]
[1765392549486,0.00379476,3409.2,3409.1,0.14666]
[1765392549688,2.71559476,3409.2,3409.1,0.14666]
[1765392549884,0.00379476,3409.2,3409.1,0.14666]
[1765392551183,0.00379476,3409.2,3409.1,6.14666]
[1765392551492,0.00379476,3409.2,3409.1,0.14666]
[1765392552385,0.00379476,3409.2,3409.1,6.14666]
[1765392552892,0.00379476,3409.2,3409.1,0.14666]
[1765392553890,3.2078,3409.9,3409.8,0.14663]
[1765392554486,0.00439915,3410.1,3410.0,0.14663]
[1765392554682,2.7118,3409.2,3409.0,0.00283966]
[1765392554884,2.71474063,3409.2,3409.0,0.00283966]
[1765392555089,2.71474063,3409.2,3409.0,0.14950966]
[1765392555490,2.71474063,3409.2,3409.1,0.14666]
[1765392556492,0.00294063,3409.2,3409.1,0.14666]
[1765392558997,5.92254063,3409.2,3409.1,0.14666]
[1765392559296,12.71761771,3409.2,3408.3,0.1467]
[1765392559497,3.2078,3408.4,3408.3,0.1467]
[1765392559692,4.00287708,3408.4,3408.3,0.1467]
[1765392560093,4.00287708,3408.4,3408.3,0.15047369]
[1765392562602,3.21219915,3409.1,3409.0,0.14667]
[1765392562801,4.00887287,3409.1,3409.0,0.14667]
[1765392563396,4.00887287,3409.1,3408.3,3.21157369]
[1765392563602,3.2078,3408.6,3408.3,0.00377369]
[1765392563799,0.79667372,3408.5,3408.4,0.14669]
[1765392564001,0.79754693,3408.9,3408.8,0.14668]
[1765392564202,3.2078,3409.0,3408.9,0.14667]
[1765392564399,4.00573226,3409.0,3408.9,0.14667]
[1765392565001,0.79793226,3409.0,3408.7,3.02515975]
[1765392565301,3.2078,3408.8,3408.3,0.00377369]
[1765392565504,0.79793226,3408.7,3408.3,0.00377369]
[1765392565708,0.79793226,3408.6,3408.4,0.14669]
[1765392566009,0.79793226,3408.5,3408.4,0.14669]
[1765392569004,2.3309,3408.0,3407.0,0.14675]
[1765392569205,2.3309,3407.2,3407.0,0.14675]
[1765392569400,1.57106201,3407.6,3407.5,0.14673]
[1765392569606,0.79660957,3407.6,3407.5,0.14673]
[1765392569911,0.79660957,3407.6,3407.5,0.14989585]
[1765392570907,0.00439915,3407.9,3407.7,0.14672]
[1765392571111,0.00439915,3407.9,3407.5,0.00316585]
[1765392571112,0.00439915,3407.9,3407.6,3.2078]
[1765392572411,0.00439915,3407.9,3407.8,0.14672]
[1765392573013,0.00439915,3407.9,3407.8,3.35452]
[1765392575409,0.79212441,3407.9,3407.8,3.35452]
[1765392575919,0.00439915,3407.9,3407.8,3.35452]
[1765392576106,0.79323699,3407.9,3407.8,3.35452]
[1765392576517,5.572099,3407.9,3407.8,0.14672]
[1765392576705,5.572099,3407.9,3407.5,0.00316585]
[1765392576706,4.00103699,3407.9,3407.2,0.14674]
[1765392576911,4.78253044,3407.5,3407.2,0.14674]
[1765392577105,0.78883784,3407.4,3407.2,0.14674]
[1765392577313,4.78253044,3407.5,3407.3,0.14674]
[1765392577613,2.3309,3407.2,3406.0,3.2078]
[1765392577814,6.09976452,3406.4,3406.2,0.14679]
[1765392578110,0.78919354,3406.3,3406.2,0.14679]
[1765392578515,0.78919354,3406.3,3406.0,0.00327786]
[1765392578715,3.2078,3406.1,3406.0,0.00327786]
[1765392579017,3.99699354,3406.1,3406.0,0.00327786]
[1765392580416,3.99699354,3406.1,3406.0,0.15007786]
[1765392580720,3.99699354,3406.1,3405.1,3.2078]
[1765392580923,0.00439915,3405.9,3405.8,0.14681]
[1765392581716,0.00439915,3405.9,3405.8,0.15044859]
[1765392581925,0.00439915,3405.9,3405.8,4.859e-05]
[1765392582714,0.00439915,3405.9,3405.8,0.14685859]
[1765392591326,7.96309915,3405.9,3405.8,0.14685859]
[1765392592817,7.96309915,3405.9,3405.8,4.859e-05]
[1765392593019,6.78526819,3405.9,3405.2,0.14683]
[1765392593223,7.9587,3405.3,3405.2,0.14683]
[1765392593726,3.2078,3405.5,3405.4,0.14682]
[1765392594022,5.5387,3405.5,3405.4,0.14682]
[1765392594322,5.5387,3405.5,3405.4,4.39592099]
[1765392594323,3.2078,3405.5,3405.4,4.39592099]
[1765392594525,3.21219915,3405.9,3405.8,0.14681]
[1765392594826,3.21219915,3405.9,3405.8,8.57451]
[1765392595631,11.17089915,3405.9,3405.8,0.14681]
[1765392597220,11.95250946,3405.9,3405.8,0.14681]
[1765392600428,11.95250946,3405.9,3405.4,0.00290099]
[1765392600429,9.8409,3405.5,3405.4,0.00290099]
[1765392600626,9.8409,3405.5,3403.9,0.14689]
[1765392600627,7.2368,3404.7,3403.9,0.14689]
[1765392600830,4.39951951,3404.8,3403.9,0.14689]
[1765392600831,3.2078,3404.0,3403.9,0.14689]
[1765392601628,0.00359664,3404.0,3403.9,0.00378639]
[1765392601833,0.00359664,3404.0,3403.9,0.15067639]
[1765392602032,3.21139664,3404.0,3403.9,0.15067639]
[1765392602734,4.02466219,3404.0,3403.9,0.15067639]
[1765392603935,3.21139664,3404.0,3403.9,7.83247639]
[1765392604135,0.00359664,3404.0,3403.9,7.83247639]
[1765392605139,4.46032467,3404.0,3403.9,0.15067639]
[1765392605440,0.81772467,3404.0,3403.9,7.83247639]
[1765392605735,1.57164343,3405.8,3404.8,7.82865]
[1765392605941,3.2078,3405.3,3405.2,0.14683]
[1765392606128,11.25929096,3405.3,3405.2,0.14683]
[1765392606436,4.02249096,3405.3,3405.2,0.14683]
[1765392606634,4.02587391,3405.3,3405.2,0.14683]
[1765392607634,0.81807391,3405.3,3405.2,0.14683]
[1765392608036,0.00338295,3405.3,3405.2,0.14683]
[1765392608736,0.81807391,3405.3,3405.2,3.96803]
[1765392609037,0.81807391,3405.3,3405.2,0.14683]
[1765392609232,0.81807391,3405.3,3405.2,7.82863]
[1765392609439,1.57604258,3405.9,3405.2,7.82863]
[1765392609440,0.00439915,3405.9,3405.8,7.6818]
[1765392609733,0.00439915,3405.9,3405.8,0.14681]
[1765392609734,3.64699915,3405.9,3405.8,0.14681]
[1765392610334,0.00719212,3405.9,3405.8,0.14681]
[1765392611137,3.64979212,3405.9,3405.8,0.14681]
[1765392611844,0.00719212,3405.9,3405.8,3.96801]
[1765392612043,7.24399212,3405.9,3405.8,0.14681]
[1765392612437,0.00719212,3405.9,3405.8,0.14681]
[1765392612637,0.00719212,3405.9,3405.8,7.82861]
[1765392613542,0.00719212,3405.9,3405.8,3.96801]
[1765392614243,0.00719212,3405.9,3405.8,7.82861]
[1765392615640,3.65019212,3405.9,3405.8,0.14681]
[1765392616546,7.32029212,3405.9,3405.8,0.14681]
[1765392618044,7.32029212,3405.9,3403.9,2.5173042]
[1765392618045,13.32029212,3405.9,3404.2,3.2078]
[1765392618247,7.3131,3404.3,3404.2,0.14687]
[1765392619550,3.2078,3404.4,3404.3,0.14687]
[1765392619748,3.2078,3404.4,3404.3,7.67907]
[1765392620150,6.8508,3404.4,3404.3,0.14687]
[1765392620354,10.5209,3404.4,3404.3,0.14687]
[1765392621345,6.8508,3404.4,3404.3,0.14687]
[1765392621547,3.2078,3404.4,3404.3,0.14687]
[1765392621949,6.8508,3404.4,3404.3,0.14687]
[1765392622357,3.2078,3404.4,3404.3,3.92167]
[1765392623960,3.2078,3404.4,3404.3,7.67907]
[1765392624755,3.2078,3404.4,3404.3,3.92167]
[1765392625659,6.8508,3404.4,3404.3,0.14687]
[1765392625857,3.2078,3404.4,3404.3,0.14687]
[1765392626062,3.2078,3404.4,3404.3,7.67907]
[1765392626263,3.2078,3404.9,3404.3,7.5322]
[1765392626660,3.2078,3404.9,3404.8,7.5322]
[1765392626962,2.0955,3405.5,3405.2,3.7748]
[1765392626963,3.2078,3405.3,3405.2,3.7748]
[1765392627162,3.2078,3405.3,3404.2,3.2078]
[1765392627657,3.2078,3405.2,3404.7,3.7748]
[1765392628263,10.3748,3405.2,3405.1,0.14684]
[1765392628763,11.21709455,3405.2,3405.1,0.14684]
[1765392629959,10.3748,3405.2,3405.1,0.14684]
[1765392630863,11.21718399,3405.2,3405.1,0.14684]
[1765392631453,11.21741762,3405.2,3405.1,0.14684]
[1765392631862,19.73093543,3405.2,3403.9,0.00378639]
[1765392632064,3.3542,3404.0,3403.9,0.15067639]
[1765392632264,6.8782,3404.0,3403.9,0.15067639]
[1765392634560,9.39171781,3404.0,3403.9,1e-08]
[1765392634956,6.8782,3404.0,3403.9,1e-08]
[1765392635664,6.8782,3404.0,3403.9,0.14922369]
[1765392637068,6.8782,3404.0,3402.6,3.2078]
[1765392637370,12.0839,3403.4,3403.3,0.14691]
[1765392637566,0.00440574,3403.6,3403.5,7.13161]
[1765392638065,3.35860574,3403.6,3403.5,0.14923863]
[1765392638267,6.88579709,3403.6,3403.5,0.14923863]
[1765392640366,0.00759709,3403.6,3403.5,0.14923863]
[1765392640569,0.00759709,3403.6,3403.5,7.13393863]
[1765392642379,3.36179709,3403.6,3403.5,0.14923863]
[1765392642581,6.88579709,3403.6,3403.5,0.14923863]
[1765392643073,0.00759709,3403.6,3403.5,3.76973863]
[1765392643977,0.00759709,3403.6,3403.5,7.13393863]
[1765392645973,9.3993149,3403.6,3403.5,0.14923863]
[1765392646676,6.88579709,3403.6,3403.5,0.14923863]
[1765392647473,7.76391819,3403.6,3403.5,0.14923863]
[1765392648477,5.3521,3402.6,3402.5,0.14695]
[1765392648968,6.562,3402.9,3402.8,0.14694]
[1765392649170,10.086,3402.9,3402.8,0.14694]
[1765392649575,10.086,3402.9,3402.8,0.14922685]
[1765392649972,6.8782,3402.2,3401.7,3.2078]
[1765392650172,10.086,3402.2,3401.7,3.2078]
[1765392650568,10.086,3402.2,3402.1,0.14697]
[1765392650783,6.8782,3401.6,3401.5,0.14699]
[1765392651083,6.8782,3401.6,3399.4,3.2078]
[1765392651084,1.9979,3401.4,3399.4,3.2078]
[1765392651267,3.2078,3400.5,3400.4,7.13174]
[1765392651474,0.00259185,3400.5,3400.4,7.13174]
[1765392652286,3.21039185,3400.5,3400.4,7.13174]
[1765392653587,3.2078,3401.4,3401.3,8.5346]
[1765392653780,10.086,3401.4,3401.3,0.147]
[1765392654378,3.2078,3401.4,3401.3,3.7675]
[1765392654584,3.21132968,3401.4,3401.3,3.7675]
[1765392655173,3.21132968,3401.4,3401.3,7.1317]
[1765392655382,10.08952968,3401.4,3401.3,0.147]
[1765392655980,10.08952968,3401.4,3401.3,1e-08]
[1765392656488,6.8782,3401.0,3400.9,0.14702]
[1765392656682,10.086,3401.0,3400.9,0.14702]
[1765392656888,3.2078,3401.0,3400.9,7.13172]
[1765392657082,6.562,3401.0,3400.9,0.14702]
[1765392657388,3.2078,3401.0,3400.9,3.76752]
[1765392657683,6.562,3401.0,3400.9,3.76752]
[1765392657986,3.2078,3401.0,3400.9,3.38202]
[1765392658187,3.2078,3401.0,3400.9,6.71132]
[1765392659185,10.016,3401.0,3400.9,0.14702]
[1765392659485,6.8082,3400.4,3400.3,0.14704]
[1765392659784,10.016,3400.4,3400.3,0.14704]
[1765392660185,10.016,3400.4,3399.6,0.00380385]
[1765392660487,6.8082,3399.0,3398.9,0.1471]
[1765392660685,10.016,3399.0,3398.9,0.1471]
[1765392661183,3.2078,3399.0,3398.9,6.7114]